[Event "Early-Titled-Tuesday-Blitz-April-16-2024"]
[Site "Chess.com"]
[Date "2024.04.16"]
[Round "8"]
[White "ReinisUz"]
[Black "Mikhail_Golubev"]
[Result "0-1"]
[WhiteElo "2379"]
[BlackElo "2601"]
[TimeControl "180+1"]
[EndTime "9:31:15 PDT"]
[Termination "Mikhail_Golubev won by resignation"]

1. c4 {[%clk 0:03:00.9]} 1... g6 {[%clk 0:02:59.7]} 2. Nc3 {[%clk 0:03:00.2]}
2... Bg7 {[%clk 0:03:00.2]} 3. g3 {[%clk 0:03:00.5]} 3... e5 {[%clk 0:03:00.5]}
4. Bg2 {[%clk 0:03:00.3]} 4... d6 {[%clk 0:03:00.8]} 5. e4 {[%clk 0:02:58.4]}
5... Nc6 {[%clk 0:02:59.7]} 6. Nge2 {[%clk 0:02:58.5]} 6... Nd4 {[%clk
0:02:57.9]} 7. O-O {[%clk 0:02:48.2]} 7... Ne7 {[%clk 0:02:54.2]} 8. d3 {[%clk
0:02:46.9]} 8... Nxe2+ {[%clk 0:02:53.4]} 9. Qxe2 {[%clk 0:02:44.1]} 9... O-O
{[%clk 0:02:49.5]} 10. f4 {[%clk 0:02:40.1]} 10... f5 {[%clk 0:02:41.3]} 11.
fxe5 {[%clk 0:02:37]} 11... dxe5 {[%clk 0:02:38.9]} 12. exf5 {[%clk 0:02:33.7]}
12... Nxf5 {[%clk 0:02:29.3]} 13. Be3 {[%clk 0:02:23.7]} 13... e4 {[%clk
0:02:12.3]} 14. Rxf5 {[%clk 0:01:37.7]} 14... Bxf5 {[%clk 0:01:57]} 15. dxe4
{[%clk 0:01:36.8]} 15... Be6 {[%clk 0:01:55.9]} 16. Rd1 {[%clk 0:01:27.5]} 16...
Qe8 {[%clk 0:01:31.2]} 17. Bc5 {[%clk 0:01:15]} 17... Rf7 {[%clk 0:01:26]} 18.
Nd5 {[%clk 0:01:08.9]} 18... Be5 {[%clk 0:01:16.2]} 19. Bd4 {[%clk 0:01:03.7]}
19... Bxd5 {[%clk 0:00:53.4]} 20. cxd5 {[%clk 0:01:01]} 20... Bxd4+ {[%clk
0:00:51.9]} 21. Rxd4 {[%clk 0:01:00.3]} 21... Qe5 {[%clk 0:00:52.5]} 22. Qc4
{[%clk 0:00:55.8]} 22... Raf8 {[%clk 0:00:49.5]} 23. Rd2 {[%clk 0:00:48.7]}
23... Kg7 {[%clk 0:00:39.5]} 24. Qc3 {[%clk 0:00:37.2]} 24... Qxc3 {[%clk
0:00:33.8]} 25. bxc3 {[%clk 0:00:38.1]} 25... Kf6 {[%clk 0:00:33.8]} 26. Kf2
{[%clk 0:00:27.5]} 26... Ke5+ {[%clk 0:00:32.9]} 27. Ke3 {[%clk 0:00:27.8]}
27... Rd8 {[%clk 0:00:27.6]} 28. c4 {[%clk 0:00:26.8]} 28... c5 {[%clk
0:00:23.7]} 29. a4 {[%clk 0:00:18.3]} 29... Rd6 {[%clk 0:00:23.4]} 30. a5 {[%clk
0:00:16.9]} 30... Ra6 {[%clk 0:00:22.4]} 31. Ra2 {[%clk 0:00:16.7]} 31... b6
{[%clk 0:00:21.5]} 32. Bh3 {[%clk 0:00:15.5]} 32... Rxa5 {[%clk 0:00:20.1]} 33.
Rd2 {[%clk 0:00:15.2]} 33... Rf6 {[%clk 0:00:19.7]} 34. Rd3 {[%clk 0:00:15]}
34... Ra4 {[%clk 0:00:18.7]} 35. Bd7 {[%clk 0:00:14.9]} 35... Rxc4 {[%clk
0:00:17.5]} 36. Be6 {[%clk 0:00:15.3]} 36... Rxe4+ {[%clk 0:00:17]} 37. Kd2
{[%clk 0:00:16.2]} 37... Rd4 {[%clk 0:00:16.4]} 38. Rxd4 {[%clk 0:00:15.9]}
38... cxd4 {[%clk 0:00:16.3]} 39. Kd3 {[%clk 0:00:16.8]} 39... Rxe6 {[%clk
0:00:16.3]} 40. dxe6 {[%clk 0:00:16.4]} 40... Kxe6 {[%clk 0:00:16.4]} 41. Kxd4
{[%clk 0:00:17.3]} 0-1

[Event "Early-Titled-Tuesday-Blitz-April-16-2024"]
[Site "Chess.com"]
[Date "2024.04.16"]
[Round "8"]
[White "Schattman"]
[Black "Statham_01"]
[Result "0-1"]
[WhiteElo "2494"]
[BlackElo "2614"]
[TimeControl "180+1"]
[EndTime "9:31:17 PDT"]
[Termination "Statham_01 won on time"]

1. f4 {[%clk 0:03:00.9]} 1... e5 {[%clk 0:02:59.4]} 2. fxe5 {[%clk 0:03:01.1]}
2... d6 {[%clk 0:02:59.3]} 3. exd6 {[%clk 0:03:01.6]} 3... Bxd6 {[%clk
0:02:57.8]} 4. Nf3 {[%clk 0:03:01.8]} 4... Bg4 {[%clk 0:02:57.2]} 5. e4 {[%clk
0:02:56.4]} 5... Nc6 {[%clk 0:02:57.1]} 6. c3 {[%clk 0:02:55]} 6... Ne5 {[%clk
0:02:41.3]} 7. d4 {[%clk 0:02:42.9]} 7... Bxf3 {[%clk 0:02:24]} 8. gxf3 {[%clk
0:02:41.8]} 8... Qh4+ {[%clk 0:02:24.2]} 9. Kd2 {[%clk 0:02:22.7]} 9... O-O-O
{[%clk 0:02:04.4]} 10. Kc2 {[%clk 0:02:18.6]} 10... f5 {[%clk 0:01:43]} 11. dxe5
{[%clk 0:01:51.8]} 11... Bxe5 {[%clk 0:01:42.1]} 12. Qe2 {[%clk 0:01:51.9]}
12... Nf6 {[%clk 0:01:38.7]} 13. Bg2 {[%clk 0:01:41.7]} 13... fxe4 {[%clk
0:01:37]} 14. fxe4 {[%clk 0:01:38.6]} 14... Rhf8 {[%clk 0:01:36]} 15. Qe1 {[%clk
0:01:10.3]} 15... Qh5 {[%clk 0:01:24.8]} 16. Rf1 {[%clk 0:01:00.4]} 16... Bxh2
{[%clk 0:01:10]} 17. Be3 {[%clk 0:00:49.4]} 17... Ng4 {[%clk 0:01:05.5]} 18. Nd2
{[%clk 0:00:47.7]} 18... Kb8 {[%clk 0:00:56.4]} 19. Bf3 {[%clk 0:00:34.8]} 19...
Qb5 {[%clk 0:00:35.9]} 20. Qe2 {[%clk 0:00:20.2]} 20... Qxe2 {[%clk 0:00:34.2]}
21. Bxe2 {[%clk 0:00:19.6]} 21... Nxe3+ {[%clk 0:00:34.6]} 22. Kb3 {[%clk
0:00:20]} 22... Nxf1 {[%clk 0:00:32.8]} 23. Nxf1 {[%clk 0:00:19.4]} 23... Bf4
{[%clk 0:00:33]} 24. Bc4 {[%clk 0:00:18.2]} 24... c6 {[%clk 0:00:32.5]} 25. a4
{[%clk 0:00:17.8]} 25... h5 {[%clk 0:00:31.8]} 26. a5 {[%clk 0:00:16.3]} 26...
h4 {[%clk 0:00:31.1]} 27. a6 {[%clk 0:00:17.2]} 27... b5 {[%clk 0:00:31]} 28.
Be6 {[%clk 0:00:16.1]} 28... g5 {[%clk 0:00:30.3]} 29. Bf5 {[%clk 0:00:15.7]}
29... Kc7 {[%clk 0:00:30.3]} 30. c4 {[%clk 0:00:15.3]} 30... Rd3+ {[%clk
0:00:29.8]} 31. Kc2 {[%clk 0:00:14.9]} 31... bxc4 {[%clk 0:00:29.7]} 32. Ra4
{[%clk 0:00:12.7]} 32... Rf3 {[%clk 0:00:28.9]} 33. Rxc4 {[%clk 0:00:12.1]}
33... Rf2+ {[%clk 0:00:27.8]} 34. Kb3 {[%clk 0:00:11.5]} 34... Rb8+ {[%clk
0:00:25.3]} 0-1

[Event "Early-Titled-Tuesday-Blitz-April-16-2024"]
[Site "Chess.com"]
[Date "2024.04.16"]
[Round "8"]
[White "DvaHrasta"]
[Black "Burgsvik"]
[Result "1-0"]
[WhiteElo "2474"]
[BlackElo "2262"]
[TimeControl "180+1"]
[EndTime "9:31:17 PDT"]
[Termination "DvaHrasta won on time"]

1. c4 {[%clk 0:03:00.9]} 1... c5 {[%clk 0:02:58.2]} 2. g3 {[%clk 0:03:01]} 2...
Nc6 {[%clk 0:02:58.1]} 3. Bg2 {[%clk 0:03:01.4]} 3... d6 {[%clk 0:02:58.6]} 4.
Nc3 {[%clk 0:03:00.3]} 4... Be6 {[%clk 0:02:58.4]} 5. b3 {[%clk 0:02:58.8]} 5...
Qc8 {[%clk 0:02:58.3]} 6. e3 {[%clk 0:02:57.9]} 6... g6 {[%clk 0:02:57]} 7. d4
{[%clk 0:02:55.9]} 7... cxd4 {[%clk 0:02:55.1]} 8. exd4 {[%clk 0:02:55.4]} 8...
Bg4 {[%clk 0:02:55]} 9. f3 {[%clk 0:02:48]} 9... Bf5 {[%clk 0:02:51.7]} 10. g4
{[%clk 0:02:47.5]} 10... Bd7 {[%clk 0:02:51.1]} 11. Bb2 {[%clk 0:02:44.7]} 11...
Bg7 {[%clk 0:02:49.8]} 12. Nge2 {[%clk 0:02:43.9]} 12... h5 {[%clk 0:02:48.3]}
13. h3 {[%clk 0:02:41.1]} 13... hxg4 {[%clk 0:02:48.1]} 14. fxg4 {[%clk
0:02:41.3]} 14... Bxg4 {[%clk 0:02:10.8]} 15. hxg4 {[%clk 0:02:37]} 15... Rxh1+
{[%clk 0:02:10]} 16. Bxh1 {[%clk 0:02:37]} 16... Qxg4 {[%clk 0:02:09.7]} 17.
Bxc6+ {[%clk 0:02:27.6]} 17... bxc6 {[%clk 0:02:09]} 18. Qd3 {[%clk 0:02:24.9]}
18... Bh6 {[%clk 0:02:06.2]} 19. Qe4 {[%clk 0:02:15]} 19... Qd7 {[%clk
0:01:58.9]} 20. d5 {[%clk 0:02:10.4]} 20... Rc8 {[%clk 0:01:44.1]} 21. dxc6
{[%clk 0:02:07.8]} 21... Rxc6 {[%clk 0:01:43.7]} 22. Nd5 {[%clk 0:02:04.3]}
22... Rc5 {[%clk 0:01:10.4]} 23. Bd4 {[%clk 0:01:59.3]} 23... Rc8 {[%clk
0:01:07.5]} 24. Be3 {[%clk 0:01:51.5]} 24... f5 {[%clk 0:00:51]} 25. Qd4 {[%clk
0:01:43.1]} 25... e5 {[%clk 0:00:41.1]} 26. Qh4 {[%clk 0:01:33.5]} 26... f4
{[%clk 0:00:21.2]} 27. Bd2 {[%clk 0:01:15.5]} 27... g5 {[%clk 0:00:17.5]} 28.
Qh5+ {[%clk 0:01:04.7]} 28... Qf7 {[%clk 0:00:17.4]} 29. Qh3 {[%clk 0:01:02.7]}
29... Rd8 {[%clk 0:00:13.8]} 30. Nec3 {[%clk 0:00:59.1]} 30... Qg6 {[%clk
0:00:10.6]} 31. O-O-O {[%clk 0:00:52.3]} 31... g4 {[%clk 0:00:10.9]} 32. Qh4
{[%clk 0:00:46.8]} 32... Qg5 {[%clk 0:00:11.1]} 33. Qf2 {[%clk 0:00:45.2]} 33...
g3 {[%clk 0:00:11.1]} 34. Qxa7 {[%clk 0:00:45]} 34... Ne7 {[%clk 0:00:09.9]} 35.
Ne4 {[%clk 0:00:43.8]} 35... Qh4 {[%clk 0:00:08.3]} 36. Nef6+ {[%clk 0:00:42.2]}
36... Kf7 {[%clk 0:00:06.6]} 37. Qxe7+ {[%clk 0:00:41.6]} 37... Kg6 {[%clk
0:00:06.7]} 38. Qxd8 {[%clk 0:00:40.5]} 38... g2 {[%clk 0:00:06.4]} 39. Qg8+
{[%clk 0:00:39.2]} 39... Bg7 {[%clk 0:00:06.3]} 40. Ne8 {[%clk 0:00:35.1]} 40...
Qh6 {[%clk 0:00:03.6]} 41. Ne7+ {[%clk 0:00:33.1]} 1-0

[Event "Early-Titled-Tuesday-Blitz-April-16-2024"]
[Site "Chess.com"]
[Date "2024.04.16"]
[Round "8"]
[White "aljado"]
[Black "Misterfox120"]
[Result "0-1"]
[WhiteElo "2145"]
[BlackElo "2385"]
[TimeControl "180+1"]
[EndTime "9:31:17 PDT"]
[Termination "Misterfox120 won by checkmate"]

1. e4 {[%clk 0:03:00.9]} 1... Nf6 {[%clk 0:03:00.2]} 2. e5 {[%clk 0:02:59.8]}
2... Nd5 {[%clk 0:03:00.3]} 3. d4 {[%clk 0:03:00.3]} 3... d6 {[%clk 0:02:59.8]}
4. c4 {[%clk 0:03:00.7]} 4... Nb6 {[%clk 0:02:59.7]} 5. f4 {[%clk 0:03:01.2]}
5... dxe5 {[%clk 0:02:58.2]} 6. fxe5 {[%clk 0:03:01.8]} 6... Bf5 {[%clk
0:02:58.1]} 7. Nc3 {[%clk 0:03:00.1]} 7... e6 {[%clk 0:02:58.2]} 8. Nf3 {[%clk
0:02:58.6]} 8... Nc6 {[%clk 0:02:53]} 9. Be2 {[%clk 0:02:54.4]} 9... Bb4 {[%clk
0:02:51.7]} 10. O-O {[%clk 0:02:52.9]} 10... O-O {[%clk 0:02:50.1]} 11. Be3
{[%clk 0:02:49]} 11... Na5 {[%clk 0:02:48.7]} 12. c5 {[%clk 0:02:31]} 12... Nbc4
{[%clk 0:02:33.3]} 13. Bg5 {[%clk 0:02:28.1]} 13... f6 {[%clk 0:02:30]} 14. exf6
{[%clk 0:02:27]} 14... gxf6 {[%clk 0:02:30.9]} 15. Bh6 {[%clk 0:02:25.3]} 15...
Nxb2 {[%clk 0:02:18.3]} 16. Qc1 {[%clk 0:02:22.9]} 16... Nd3 {[%clk 0:01:59.3]}
17. Bxd3 {[%clk 0:02:20.5]} 17... Bxd3 {[%clk 0:01:59.3]} 18. Rd1 {[%clk
0:02:14.8]} 18... Bg6 {[%clk 0:01:44.3]} 19. Bxf8 {[%clk 0:02:02.8]} 19... Qxf8
{[%clk 0:01:43.2]} 20. Qb2 {[%clk 0:01:53.1]} 20... Nc6 {[%clk 0:01:35]} 21. a3
{[%clk 0:01:51.7]} 21... Bxc3 {[%clk 0:01:31.5]} 22. Qxc3 {[%clk 0:01:50.2]}
22... Rd8 {[%clk 0:01:24]} 23. Qe3 {[%clk 0:01:36]} 23... Qf7 {[%clk 0:00:58.5]}
24. Nh4 {[%clk 0:01:33.2]} 24... Rd5 {[%clk 0:00:47]} 25. Nxg6 {[%clk
0:01:30.3]} 25... hxg6 {[%clk 0:00:47.9]} 26. Ra2 {[%clk 0:01:25.8]} 26... e5
{[%clk 0:00:42.7]} 27. Re2 {[%clk 0:01:18.5]} 27... Nxd4 {[%clk 0:00:36.2]} 28.
Red2 {[%clk 0:01:13.9]} 28... Rxc5 {[%clk 0:00:31.9]} 29. Qe4 {[%clk 0:01:08.2]}
29... c6 {[%clk 0:00:24.7]} 30. Rd3 {[%clk 0:00:53.7]} 30... Kg7 {[%clk
0:00:19.8]} 31. Rh3 {[%clk 0:00:47.4]} 31... Qd5 {[%clk 0:00:12.4]} 32. Qg4
{[%clk 0:00:29]} 32... f5 {[%clk 0:00:06.2]} 33. Qh4 {[%clk 0:00:20.3]} 33...
Nf3+ {[%clk 0:00:03.4]} 34. gxf3 {[%clk 0:00:17.6]} 34... Qxd1+ {[%clk
0:00:03.7]} 35. Kg2 {[%clk 0:00:18]} 35... Rc2+ {[%clk 0:00:04.2]} 36. Kg3
{[%clk 0:00:17.8]} 36... Qg1# {[%clk 0:00:04.7]} 0-1

[Event "Early-Titled-Tuesday-Blitz-April-16-2024"]
[Site "Chess.com"]
[Date "2024.04.16"]
[Round "8"]
[White "MatthewG-p4p"]
[Black "tetrix83"]
[Result "1-0"]
[WhiteElo "2857"]
[BlackElo "2631"]
[TimeControl "180+1"]
[EndTime "9:31:18 PDT"]
[Termination "MatthewG-p4p won on time"]

1. f4 {[%clk 0:02:43.9]} 1... c5 {[%clk 0:02:36.2]} 2. Nf3 {[%clk 0:02:43.1]}
2... g6 {[%clk 0:02:35.4]} 3. g3 {[%clk 0:02:43.7]} 3... Bg7 {[%clk 0:02:35.4]}
4. Bg2 {[%clk 0:02:44.3]} 4... Nc6 {[%clk 0:02:34.5]} 5. O-O {[%clk 0:02:45.1]}
5... Nf6 {[%clk 0:02:33.7]} 6. d3 {[%clk 0:02:45.7]} 6... d5 {[%clk 0:02:33.1]}
7. Nc3 {[%clk 0:02:46]} 7... O-O {[%clk 0:02:33.1]} 8. e4 {[%clk 0:02:46.2]}
8... e6 {[%clk 0:02:12.3]} 9. e5 {[%clk 0:02:44.9]} 9... Nd7 {[%clk 0:02:10.4]}
10. Nb5 {[%clk 0:02:43.6]} 10... b6 {[%clk 0:02:06.4]} 11. Re1 {[%clk
0:02:40.8]} 11... Rb8 {[%clk 0:01:56.2]} 12. Nd6 {[%clk 0:02:39.9]} 12... Ba6
{[%clk 0:01:56.1]} 13. c4 {[%clk 0:02:37.2]} 13... Qc7 {[%clk 0:01:31.5]} 14.
Qa4 {[%clk 0:02:32.8]} 14... Bb7 {[%clk 0:01:02.7]} 15. Bd2 {[%clk 0:02:07.7]}
15... Ba8 {[%clk 0:01:02.2]} 16. cxd5 {[%clk 0:01:56.5]} 16... exd5 {[%clk
0:00:53.7]} 17. Rac1 {[%clk 0:01:55.6]} 17... a5 {[%clk 0:00:46.6]} 18. Ng5
{[%clk 0:01:47.4]} 18... Nb4 {[%clk 0:00:36.4]} 19. Bxb4 {[%clk 0:01:45.3]}
19... axb4 {[%clk 0:00:36.2]} 20. Ngxf7 {[%clk 0:01:20.5]} 20... b5 {[%clk
0:00:20.4]} 21. Nxb5 {[%clk 0:01:04.4]} 21... Qc6 {[%clk 0:00:17.6]} 22. Nfd6
{[%clk 0:00:58]} 22... Rb6 {[%clk 0:00:09.2]} 23. e6 {[%clk 0:00:50.1]} 23...
Nf6 {[%clk 0:00:09.2]} 24. e7 {[%clk 0:00:50.5]} 24... Rfb8 {[%clk 0:00:05.6]}
25. e8=Q+ {[%clk 0:00:05.8]} 25... Nxe8 {[%clk 0:00:05.3]} 26. Nxe8 {[%clk
0:00:05.3]} 26... Qxb5 {[%clk 0:00:03]} 27. Qxb5 {[%clk 0:00:04.2]} 27... Rxb5
{[%clk 0:00:03.4]} 28. Nc7 {[%clk 0:00:05.1]} 28... R5b6 {[%clk 0:00:02.9]} 29.
Nxa8 {[%clk 0:00:05.7]} 29... c4 {[%clk 0:00:01.3]} 30. Bxd5+ {[%clk 0:00:06.2]}
1-0

[Event "Early-Titled-Tuesday-Blitz-April-16-2024"]
[Site "Chess.com"]
[Date "2024.04.16"]
[Round "8"]
[White "Makswolf200817"]
[Black "Nf3c5"]
[Result "1/2-1/2"]
[WhiteElo "2777"]
[BlackElo "2621"]
[TimeControl "180+1"]
[EndTime "9:31:18 PDT"]
[Termination "Game drawn by repetition"]

1. d4 {[%clk 0:03:00.9]} 1... Nf6 {[%clk 0:02:58.8]} 2. c4 {[%clk 0:03:01.3]}
2... g6 {[%clk 0:02:59.3]} 3. g3 {[%clk 0:02:59.8]} 3... Bg7 {[%clk 0:02:59.3]}
4. Bg2 {[%clk 0:03:00.4]} 4... O-O {[%clk 0:02:59.8]} 5. Nc3 {[%clk 0:03:01.1]}
5... d6 {[%clk 0:03:00.1]} 6. Nf3 {[%clk 0:03:01.6]} 6... c6 {[%clk 0:03:00.8]}
7. O-O {[%clk 0:03:01.8]} 7... Qa5 {[%clk 0:03:01.5]} 8. e4 {[%clk 0:03:00.9]}
8... e5 {[%clk 0:03:00.9]} 9. Re1 {[%clk 0:02:53.5]} 9... exd4 {[%clk 0:02:59]}
10. Nxd4 {[%clk 0:02:47.4]} 10... Qc5 {[%clk 0:02:59.2]} 11. Bf1 {[%clk
0:02:39.5]} 11... Ng4 {[%clk 0:02:53.4]} 12. Nce2 {[%clk 0:02:27.8]} 12... Qxc4
{[%clk 0:02:29.7]} 13. Bf4 {[%clk 0:02:17.4]} 13... Ne5 {[%clk 0:02:13.4]} 14.
Bxe5 {[%clk 0:02:14.4]} 14... Bxe5 {[%clk 0:02:10.8]} 15. b3 {[%clk 0:02:05.6]}
15... Qb4 {[%clk 0:02:09.1]} 16. Rc1 {[%clk 0:02:04.8]} 16... Na6 {[%clk
0:01:59.9]} 17. Rc4 {[%clk 0:01:54.6]} 17... Qb6 {[%clk 0:01:52.6]} 18. Nf3
{[%clk 0:01:53.4]} 18... Bg4 {[%clk 0:01:48.5]} 19. Nxe5 {[%clk 0:01:51.1]}
19... dxe5 {[%clk 0:01:49.4]} 20. Qc1 {[%clk 0:01:49.7]} 20... Bxe2 {[%clk
0:01:47.3]} 21. Bxe2 {[%clk 0:01:49.3]} 21... Nc7 {[%clk 0:01:46.5]} 22. Qc3
{[%clk 0:01:46.4]} 22... Rfe8 {[%clk 0:01:44.8]} 23. Rb4 {[%clk 0:01:44.7]}
23... Qa5 {[%clk 0:01:42.1]} 24. Rc1 {[%clk 0:01:42.9]} 24... Ne6 {[%clk
0:01:38.1]} 25. Rxb7 {[%clk 0:01:41.4]} 25... Qxa2 {[%clk 0:01:30.5]} 26. Bf1
{[%clk 0:01:33.5]} 26... Nd4 {[%clk 0:01:19.6]} 27. Ra1 {[%clk 0:01:32.8]} 27...
Ne2+ {[%clk 0:01:19.4]} 28. Bxe2 {[%clk 0:01:32.2]} 28... Qxe2 {[%clk
0:01:20.3]} 29. Qxc6 {[%clk 0:01:25.5]} 29... a5 {[%clk 0:00:54.8]} 30. Qd5
{[%clk 0:01:22]} 30... Qf3 {[%clk 0:00:49.6]} 31. Rd1 {[%clk 0:01:15.2]} 31...
a4 {[%clk 0:00:43.9]} 32. Rd3 {[%clk 0:01:07.4]} 32... Qf6 {[%clk 0:00:41.2]}
33. bxa4 {[%clk 0:01:06.1]} 33... Rxa4 {[%clk 0:00:42.1]} 34. Kg2 {[%clk
0:01:06.5]} 34... Raa8 {[%clk 0:00:35.6]} 35. Rf3 {[%clk 0:01:05.3]} 35... Qe6
{[%clk 0:00:34.9]} 36. Rfxf7 {[%clk 0:01:04.3]} 36... Qxd5 {[%clk 0:00:34.5]}
37. exd5 {[%clk 0:01:05.2]} 37... Rad8 {[%clk 0:00:23.3]} 38. Rg7+ {[%clk
0:01:04.7]} 38... Kh8 {[%clk 0:00:23.4]} 39. Rxh7+ {[%clk 0:01:05.4]} 39... Kg8
{[%clk 0:00:24.3]} 40. Rhd7 {[%clk 0:00:51.5]} 40... Rxd7 {[%clk 0:00:19.8]} 41.
Rxd7 {[%clk 0:00:52.4]} 41... e4 {[%clk 0:00:20.7]} 42. h4 {[%clk 0:00:51.9]}
42... e3 {[%clk 0:00:18.4]} 43. fxe3 {[%clk 0:00:51.6]} 43... Rxe3 {[%clk
0:00:19.3]} 44. Kh3 {[%clk 0:00:45]} 44... Re4 {[%clk 0:00:19.5]} 45. Kg2 {[%clk
0:00:39.2]} 45... Re3 {[%clk 0:00:19.5]} 46. Kf2 {[%clk 0:00:39.7]} 46... Rd3
{[%clk 0:00:19.5]} 47. Kg2 {[%clk 0:00:30]} 47... Re3 {[%clk 0:00:19.4]} 1/2-1/2

[Event "Early-Titled-Tuesday-Blitz-April-16-2024"]
[Site "Chess.com"]
[Date "2024.04.16"]
[Round "8"]
[White "chezzgirl04"]
[Black "Smiechu"]
[Result "0-1"]
[WhiteElo "2168"]
[BlackElo "2374"]
[TimeControl "180+1"]
[EndTime "9:31:20 PDT"]
[Termination "Smiechu won by resignation"]

1. e4 {[%clk 0:02:59.4]} 1... c5 {[%clk 0:02:59.7]} 2. Nf3 {[%clk 0:02:59.3]}
2... g6 {[%clk 0:03:00.3]} 3. d4 {[%clk 0:02:54.4]} 3... cxd4 {[%clk 0:03:01.2]}
4. Nxd4 {[%clk 0:02:54.3]} 4... Nc6 {[%clk 0:03:01.4]} 5. Be3 {[%clk 0:02:53.1]}
5... Nf6 {[%clk 0:02:57.9]} 6. Nc3 {[%clk 0:02:52.5]} 6... Bg7 {[%clk 0:02:58]}
7. Bc4 {[%clk 0:02:49.9]} 7... O-O {[%clk 0:02:56.1]} 8. O-O {[%clk 0:02:49.7]}
8... Nxe4 {[%clk 0:02:55.1]} 9. Nxe4 {[%clk 0:02:46.4]} 9... d5 {[%clk
0:02:54.9]} 10. Nxc6 {[%clk 0:02:34.9]} 10... bxc6 {[%clk 0:02:54.2]} 11. Bd3
{[%clk 0:02:29.3]} 11... dxe4 {[%clk 0:02:54]} 12. Bxe4 {[%clk 0:02:29.3]} 12...
Qc7 {[%clk 0:02:53.3]} 13. c3 {[%clk 0:02:27.5]} 13... Be6 {[%clk 0:02:52.5]}
14. Qf3 {[%clk 0:02:26.5]} 14... Rfd8 {[%clk 0:02:45]} 15. h4 {[%clk 0:02:14.5]}
15... h5 {[%clk 0:02:43.4]} 16. Bf4 {[%clk 0:02:12.6]} 16... Qb6 {[%clk
0:02:29.8]} 17. Bxc6 {[%clk 0:01:53]} 17... Rac8 {[%clk 0:02:23.5]} 18. Bb7
{[%clk 0:01:52]} 18... Rc4 {[%clk 0:02:12.4]} 19. Be3 {[%clk 0:01:09]} 19...
Qxb2 {[%clk 0:02:01.8]} 20. Bxa7 {[%clk 0:01:06.1]} 20... Bg4 {[%clk 0:01:55.9]}
21. Rab1 {[%clk 0:00:32.9]} 21... Qxb1 {[%clk 0:01:49.6]} 22. Rxb1 {[%clk
0:00:30.2]} 22... Bxf3 {[%clk 0:01:44.5]} 23. Bxf3 {[%clk 0:00:29.6]} 23... Rxc3
{[%clk 0:01:40.3]} 24. a4 {[%clk 0:00:20.4]} 24... Ra3 {[%clk 0:01:26.5]} 25.
Bb6 {[%clk 0:00:19.6]} 25... Rb8 {[%clk 0:01:20.9]} 26. Bc6 {[%clk 0:00:19.4]}
26... Bd4 {[%clk 0:01:12.4]} 27. a5 {[%clk 0:00:12.5]} 27... Bxb6 {[%clk
0:01:10.5]} 28. axb6 {[%clk 0:00:11]} 28... Ra6 {[%clk 0:01:07.5]} 29. Bd5
{[%clk 0:00:09.2]} 29... Raxb6 {[%clk 0:01:06]} 30. Re1 {[%clk 0:00:09.5]} 30...
Rb1 {[%clk 0:01:05.5]} 31. Rxb1 {[%clk 0:00:08.8]} 31... Rxb1+ {[%clk
0:01:04.7]} 32. Kh2 {[%clk 0:00:08.8]} 32... e6 {[%clk 0:01:05.2]} 33. Be4
{[%clk 0:00:08.4]} 33... Kg7 {[%clk 0:01:04.8]} 34. Kg3 {[%clk 0:00:08.1]} 34...
Rb3+ {[%clk 0:01:03.5]} 35. f3 {[%clk 0:00:08.4]} 35... Kf6 {[%clk 0:01:02.2]}
36. Kf4 {[%clk 0:00:08.2]} 36... Rb4 {[%clk 0:00:59.6]} 37. Ke3 {[%clk
0:00:07.6]} 37... e5 {[%clk 0:00:55.7]} 38. g4 {[%clk 0:00:07.6]} 38... Rb3+
{[%clk 0:00:52.4]} 39. Kf2 {[%clk 0:00:07.4]} 39... hxg4 {[%clk 0:00:51.9]} 40.
fxg4 {[%clk 0:00:07.3]} 40... Rh3 {[%clk 0:00:51.9]} 41. h5 {[%clk 0:00:06.7]}
41... gxh5 {[%clk 0:00:51.4]} 42. gxh5 {[%clk 0:00:06.4]} 42... Rxh5 {[%clk
0:00:51.4]} 0-1

[Event "Early-Titled-Tuesday-Blitz-April-16-2024"]
[Site "Chess.com"]
[Date "2024.04.16"]
[Round "8"]
[White "GHANDEEVAM2003"]
[Black "MyDream003"]
[Result "1-0"]
[WhiteElo "3011"]
[BlackElo "2797"]
[TimeControl "180+1"]
[EndTime "9:31:21 PDT"]
[Termination "GHANDEEVAM2003 won on time"]

1. c3 {[%clk 0:03:00.9]} 1... d5 {[%clk 0:02:51.9]} 2. Nf3 {[%clk 0:02:59.8]}
2... Nf6 {[%clk 0:02:52.2]} 3. g3 {[%clk 0:02:59.5]} 3... Bf5 {[%clk 0:02:49.1]}
4. Bg2 {[%clk 0:02:59.6]} 4... c6 {[%clk 0:02:49.6]} 5. O-O {[%clk 0:02:59.2]}
5... h6 {[%clk 0:02:49.8]} 6. d3 {[%clk 0:02:59.2]} 6... e6 {[%clk 0:02:50.2]}
7. Nbd2 {[%clk 0:02:59.3]} 7... Bh7 {[%clk 0:02:50.2]} 8. Qc2 {[%clk 0:02:59.7]}
8... Be7 {[%clk 0:02:50.3]} 9. e4 {[%clk 0:02:58.6]} 9... O-O {[%clk 0:02:50.4]}
10. b3 {[%clk 0:02:58.7]} 10... a5 {[%clk 0:02:48.8]} 11. a3 {[%clk 0:02:57.5]}
11... Na6 {[%clk 0:02:49.2]} 12. Bb2 {[%clk 0:02:58]} 12... Rc8 {[%clk
0:02:48.4]} 13. Rfe1 {[%clk 0:02:56.4]} 13... Nc5 {[%clk 0:02:40.2]} 14. Ne5
{[%clk 0:02:47.5]} 14... Ncd7 {[%clk 0:02:27.9]} 15. Nxd7 {[%clk 0:02:44.5]}
15... Nxd7 {[%clk 0:02:24.5]} 16. b4 {[%clk 0:02:43.5]} 16... Ra8 {[%clk
0:02:14.4]} 17. h4 {[%clk 0:02:41.3]} 17... Re8 {[%clk 0:02:11.6]} 18. Qb3
{[%clk 0:02:35.5]} 18... Qc7 {[%clk 0:02:11.1]} 19. d4 {[%clk 0:02:34.8]} 19...
b6 {[%clk 0:02:03.3]} 20. b5 {[%clk 0:02:30.6]} 20... a4 {[%clk 0:01:53.1]} 21.
Qd1 {[%clk 0:02:30.1]} 21... Nf6 {[%clk 0:01:46.8]} 22. bxc6 {[%clk 0:02:29.4]}
22... dxe4 {[%clk 0:01:43]} 23. Nxe4 {[%clk 0:02:07]} 23... Nxe4 {[%clk
0:01:43.1]} 24. Rxe4 {[%clk 0:02:07.6]} 24... Bxe4 {[%clk 0:01:44]} 25. Bxe4
{[%clk 0:02:08.1]} 25... Bf6 {[%clk 0:01:21]} 26. Qf3 {[%clk 0:02:01.9]} 26...
Ra5 {[%clk 0:01:18.6]} 27. Re1 {[%clk 0:02:02.3]} 27... Rc8 {[%clk 0:01:08.9]}
28. Kg2 {[%clk 0:02:01.3]} 28... Rb5 {[%clk 0:01:09.2]} 29. Bc1 {[%clk
0:02:00.4]} 29... Rb3 {[%clk 0:01:08.7]} 30. Bf4 {[%clk 0:01:55.9]} 30... Qd8
{[%clk 0:01:04.6]} 31. Bc2 {[%clk 0:01:24.5]} 31... Rxa3 {[%clk 0:00:58]} 32.
Bc1 {[%clk 0:01:24.4]} 32... Ra2 {[%clk 0:00:41.5]} 33. Be4 {[%clk 0:01:19.3]}
33... Ra1 {[%clk 0:00:39]} 34. d5 {[%clk 0:01:18.6]} 34... exd5 {[%clk
0:00:12.9]} 35. Bxd5 {[%clk 0:01:19.5]} 35... a3 {[%clk 0:00:09.2]} 36. Qh5
{[%clk 0:01:12.6]} 36... Qf8 {[%clk 0:00:05.9]} 37. Qf5 {[%clk 0:01:12]} 37...
Qd8 {[%clk 0:00:03.5]} 38. Rd1 {[%clk 0:01:05.7]} 38... Qf8 {[%clk 0:00:03.3]}
39. Be4 {[%clk 0:01:05.3]} 39... g6 {[%clk 0:00:01.8]} 40. Qxf6 {[%clk
0:01:05.8]} 40... a2 {[%clk 0:00:02.5]} 41. c7 {[%clk 0:01:02.5]} 41... Rb1
{[%clk 0:00:02.5]} 42. Rd8 {[%clk 0:00:55.7]} 42... a1=Q {[%clk 0:00:02.9]} 43.
Rxf8+ {[%clk 0:00:56.1]} 43... Rxf8 {[%clk 0:00:03.8]} 44. Bxh6 {[%clk
0:00:56.8]} 44... Rg1+ {[%clk 0:00:02.9]} 45. Kh2 {[%clk 0:00:57.3]} 1-0